[Event "DVM U12 2024"]
[Site "Heidelberg"]
[Date "2024.12.29"]
[Round "6"]
[White "Akcapinar, Timur"]
[Black "Hendler, Maximilian"]
[Result "1-0"]
[ECO "B23"]
[WhiteElo "1687"]
[BlackElo "1644"]
[Annotator "NA RC"]
[PlyCount "39"]
[EventDate "2024.12.23"]
[EventType "team-tourn"]
[EventRounds "7"]
[EventCountry "GER"]
[SourceTitle "playchess.com"]
[Source "ChessBase"]
[SourceQuality "1"]
[TimeControl "40/5400+30:1800+30"]

1. e4 {[%emt 0:00:01]} c5 {[%emt 0:00:13]} 2. Nc3 {[%emt 0:00:04]} d6 {[%emt 0:00:14]} 3. f4 {[%emt 0:00:04]} Nf6 {[%emt 0:00:08]} 4. Nf3 {[%emt 0:00:05]} g6 {[%emt 0:00:18]} 5. Bc4 {[%emt 0:00:04]} Bg7 {[%emt 0:00:10]} 6. O-O {[%emt 0:00:15]} O-O {[%emt 0:00:28]} 7. Qe1 {[%emt 0:01:16]} Nc6 {[%emt 0:00:32]} 8. d3 {[%emt 0:00:12]} a6 {[%emt 0:08:39]} 9. a4 {[%emt 0:00:27]} Bd7 {[%emt 0:01:05]} 10. f5 {[%emt 0:01:55]} Nd4 {[%emt 0:05:58]} 11. Nxd4 {[%emt 0:00:34]} cxd4 {[%emt 0:00:12]} 12. Nd5 {[%emt 0:00:12]} e6 {[%emt 0:07:42]} 13. Nxf6+ {[%emt 0:01:06]} Bxf6 {[%emt 0:01:17]} 14. Bh6 {[%emt 0:00:24]} Bg7 {[%emt 0:00:13]} 15. Bxg7 {[%emt 0:00:06]} Kxg7 {[%emt 0:00:08]} 16. f6+ {[%emt 0:00:05]} Kh8 {[%emt 0:00:21]} 17. Qh4 {[%emt 0:00:38]} Rg8 {[%emt 0:01:52]} 18. Rf3 {[%emt 0:00:29]} h5 {[%emt 0:00:21]} 19. Qg5 {[%emt 0:00:04]} Kh7 {[%emt 0:00:17]} 20. Rh3 {[%emt 0:00:35]} 1-0

[Event "DVM U12 2024"]
[Site "Heidelberg"]
[Date "2024.12.29"]
[Round "6"]
[White "Schmidt, Jossip"]
[Black "Atar, Semih Akif"]
[Result "1-0"]
[ECO "C10"]
[WhiteElo "1687"]
[BlackElo "1624"]
[Annotator "NA RC"]
[PlyCount "87"]
[EventDate "2024.12.23"]
[EventType "team-tourn"]
[EventRounds "7"]
[EventCountry "GER"]
[SourceTitle "playchess.com"]
[Source "ChessBase"]
[SourceQuality "1"]
[TimeControl "40/5400+30:1800+30"]

1. e4 {[%emt 0:00:02]} e6 {[%emt 0:00:08]} 2. d4 {[%emt 0:00:22]} d5 {[%emt 0:00:07]} 3. Nd2 {[%emt 0:00:40]} dxe4 {[%emt 0:00:16]} 4. Nxe4 {[%emt 0:01:05]} Nd7 {[%emt 0:00:05]} 5. Bd3 {[%emt 0:01:40]} Ngf6 {[%emt 0:00:06]} 6. Qe2 {[%emt 0:00:44]} Nxe4 {[%emt 0:00:09]} 7. Bxe4 {[%emt 0:00:06]} Nf6 {[%emt 0:00:05]} 8. Bxb7 {[%emt 0:00:09]} Bxb7 {[%emt 0:01:10]} 9. Qb5+ {[%emt 0:00:22]} Qd7 {[%emt 0:00:27]} 10. Qxb7 {[%emt 0:00:29]} Qd5 {[%emt 0:00:18]} 11. Qxd5 {[%emt 0:01:36]} Nxd5 {[%emt 0:00:24]} 12. a3 {[%emt 0:12:30]} c5 {[%emt 0:01:26]} 13. dxc5 {[%emt 0:01:56]} Bxc5 {[%emt 0:00:08]} 14. Nf3 {[%emt 0:01:05]} O-O {[%emt 0:01:36]} 15. b4 {[%emt 0:01:42]} Bb6 {[%emt 0:00:25]} 16. c4 {[%emt 0:00:25]} Nf6 {[%emt 0:00:43]} 17. c5 {[%emt 0:00:59]} Bc7 {[%emt 0:00:40]} 18. Bb2 {[%emt 0:00:09]} Nd5 {[%emt 0:00:49]} 19. O-O {[%emt 0:01:04]} a5 {[%emt 0:00:28]} 20. b5 {[%emt 0:02:06]} Rfc8 {[%emt 0:04:04]} 21. b6 {[%emt 0:00:06]} Nxb6 {[%emt 0:01:21]} 22. cxb6 {[%emt 0:00:07]} Bxb6 {[%emt 0:00:51]} 23. Rac1 {[%emt 0:00:45]} Rd8 {[%emt 0:00:00]} 24. Rfd1 {[%emt 0:00:12]} Rxd1+ {[%emt 0:00:39]} 25. Rxd1 {[%emt 0:00:06]} Rb8 {[%emt 0:00:41]} 26. Be5 {[%emt 0:00:44]} Rc8 {[%emt 0:00:46]} 27. g3 {[%emt 0:00:19]} Bc5 {[%emt 0:00:42]} 28. Bb2 {[%emt 0:01:15]} h6 {[%emt 0:00:31]} 29. Rc1 {[%emt 0:00:22]} Rc7 {[%emt 0:00:27]} 30. Bd4 {[%emt 0:00:08]} Bd6 {[%emt 0:00:25]} 31. Rxc7 {[%emt 0:00:03]} Bxc7 {[%emt 0:00:09]} 32. a4 {[%emt 0:00:04]} f6 {[%emt 0:00:31]} 33. Kf1 {[%emt 0:00:06]} e5 {[%emt 0:01:00]} 34. Bc5 {[%emt 0:00:08]} Kf7 {[%emt 0:00:22]} 35. Ke2 {[%emt 0:00:09]} Ke6 {[%emt 0:00:29]} 36. Nd2 {[%emt 0:00:47]} h5 {[%emt 0:00:34]} 37. f3 {[%emt 0:00:20]} Kd5 {[%emt 0:00:08]} 38. Bf8 {[%emt 0:00:10]} g5 {[%emt 0:00:10]} 39. Be7 {[%emt 0:00:43]} Ke6 {[%emt 0:00:09]} 40. Ba3 {[%emt 0:00:45]} Kd5 {[%emt 0:00:44]} 41. Ne4 {[%emt 0:30:27]} Bd8 {[%emt 0:30:12]} 42. Kd3 {[%emt 0:00:08]} f5 {[%emt 0:00:37]} 43. Nc3+ {[%emt 0:00:06]} Kc6 {[%emt 0:00:14]} 44. h3 {[%emt 0:02:52]} 1-0

[Event "DVM U12 2024"]
[Site "Heidelberg"]
[Date "2024.12.29"]
[Round "6"]
[White "Rogner, Alexander Luis"]
[Black "Teng, David"]
[Result "1/2-1/2"]
[ECO "B22"]
[WhiteElo "1674"]
[BlackElo "1732"]
[Annotator "NA RC"]
[PlyCount "99"]
[EventDate "2024.12.23"]
[EventType "team-tourn"]
[EventRounds "7"]
[EventCountry "GER"]
[SourceTitle "playchess.com"]
[Source "ChessBase"]
[SourceQuality "1"]
[TimeControl "40/5400+30:1800+30"]

1. e4 {[%emt 0:00:04]} c5 {[%emt 0:00:19]} 2. d4 {[%emt 0:00:08]} cxd4 {[%emt 0:00:25]} 3. c3 {[%emt 0:00:08]} Nf6 {[%emt 0:00:11]} 4. e5 {[%emt 0:00:12]} Nd5 {[%emt 0:00:18]} 5. Nf3 {[%emt 0:00:16]} e6 {[%emt 0:00:14]} 6. cxd4 {[%emt 0:00:15]} d6 {[%emt 0:00:37]} 7. Bc4 {[%emt 0:00:48]} Be7 {[%emt 0:00:29]} 8. O-O {[%emt 0:02:39]} Bd7 {[%emt 0:00:14]} 9. Qe2 {[%emt 0:02:40]} Bc6 {[%emt 0:01:24]} 10. Re1 {[%emt 0:11:26]} Nd7 {[%emt 0:00:39]} 11. Bxd5 {[%emt 0:03:30]} Bxd5 {[%emt 0:00:31]} 12. Nc3 {[%emt 0:00:13]} Nb6 {[%emt 0:02:01]} 13. Bf4 {[%emt 0:24:33]} O-O {[%emt 0:01:36]} 14. Rac1 {[%emt 0:01:19]} Qd7 {[%emt 0:02:44]} 15. Red1 {[%emt 0:01:07]} Rac8 {[%emt 0:03:02]} 16. Bg3 {[%emt 0:00:43]} a6 {[%emt 0:03:41]} 17. h3 {[%emt 0:00:14]} Rfd8 {[%emt 0:01:11]} 18. Nd2 {[%emt 0:07:08]} h6 {[%emt 0:04:03]} 19. Nde4 {[%emt 0:02:19]} Bxe4 {[%emt 0:04:53]} 20. Nxe4 {[%emt 0:03:15]} d5 {[%emt 0:01:12]} 21. Nc3 {[%emt 0:01:56]} Bb4 {[%emt 0:01:46]} 22. Nb1 {[%emt 0:11:00]} Nc4 {[%emt 0:05:02]} 23. b3 {[%emt 0:01:08]} Na5 {[%emt 0:01:39]} 24. Bf4 {[%emt 0:00:46]} Bf8 {[%emt 0:02:31]} 25. Bd2 {[%emt 0:01:17]} Nc6 {[%emt 0:00:40]} 26. Be3 {[%emt 0:00:16]} b5 {[%emt 0:00:49]} 27. Qb2 {[%emt 0:02:23]} b4 {[%emt 0:00:47]} 28. Nd2 {[%emt 0:01:03]} Na7 {[%emt 0:00:52]} 29. Nf3 {[%emt 0:00:33]} Nb5 {[%emt 0:00:28]} 30. Bd2 {[%emt 0:00:16]} a5 {[%emt 0:00:42]} 31. Be1 {[%emt 0:01:26]} g6 {[%emt 0:01:54]} 32. Kh1 {[%emt 0:01:03]} h5 {[%emt 0:00:28]} 33. Bd2 {[%emt 0:00:28]} Kh7 {[%emt 0:00:40]} 34. Ng5+ {[%emt 0:00:23]} Kg8 {[%emt 0:00:13]} 35. Nf3 {[%emt 0:00:11]} Rxc1 {[%emt 0:02:22]} 36. Rxc1 {[%emt 0:01:06]} Rc8 {[%emt 0:00:13]} 37. Kg1 {[%emt 0:03:31]} Bg7 {[%emt 0:01:04]} 38. Kh1 {[%emt 0:01:31]} Kh7 {[%emt 0:06:35]} 39. Ng5+ {[%emt 0:00:05]} Kg8 {[%emt 0:00:10]} 40. Nf3 {[%emt 0:00:04]} f6 {[%emt 0:02:50]} 41. exf6 {[%emt 0:38:47]} Bxf6 {[%emt 0:30:36]} 42. Be3 {[%emt 0:00:29]} Nc3 {[%emt 0:01:41]} 43. Qc2 {[%emt 0:01:04]} Kg7 {[%emt 0:01:54]} 44. Bg5 {[%emt 0:02:02]} Bxg5 {[%emt 0:03:50]} 45. Nxg5 {[%emt 0:00:07]} Qe7 {[%emt 0:01:08]} 46. Nf3 {[%emt 0:00:36]} Qf6 {[%emt 0:05:05]} 47. Qd3 {[%emt 0:03:53]} Ne4 {[%emt 0:02:21]} 48. Rf1 {[%emt 0:01:46]} Rc3 {[%emt 0:14:07]} 49. Qe2 {[%emt 0:01:45]} Kh6 {[%emt 0:10:24]} 50. Kg1 {[%emt 0:00:00]} 1/2-1/2

[Event "DVM U12 2024"]
[Site "Heidelberg"]
[Date "2024.12.29"]
[Round "6"]
[White "Bergmann, Rafael Antonio"]
[Black "Xu, Yan"]
[Result "1-0"]
[ECO "C42"]
[WhiteElo "1647"]
[BlackElo "1268"]
[Annotator "NA RC"]
[PlyCount "101"]
[EventDate "2024.12.23"]
[EventType "team-tourn"]
[EventRounds "7"]
[EventCountry "GER"]
[SourceTitle "playchess.com"]
[Source "ChessBase"]
[SourceQuality "1"]
[TimeControl "40/5400+30:1800+30"]

1. e4 {[%emt 0:00:02]} e5 {[%emt 0:00:17]} 2. Nf3 {[%emt 0:00:04]} Nf6 {[%emt 0:00:26]} 3. Nxe5 {[%emt 0:00:17]} d6 {[%emt 0:00:50]} 4. Nf3 {[%emt 0:00:05]} Nxe4 {[%emt 0:00:19]} 5. Nc3 {[%emt 0:00:04]} Bf5 {[%emt 0:01:28]} 6. Bd3 {[%emt 0:03:08]} Qe7 {[%emt 0:00:48]} 7. Nd5 {[%emt 0:01:35]} Qd8 {[%emt 0:01:43]} 8. Qe2 {[%emt 0:00:11]} c6 {[%emt 0:00:46]} 9. Bxe4 {[%emt 0:00:08]} Bxe4 {[%emt 0:00:58]} 10. Qxe4+ {[%emt 0:00:07]} Be7 {[%emt 0:00:29]} 11. Qxe7+ {[%emt 0:00:06]} Qxe7+ {[%emt 0:00:13]} 12. Nxe7 {[%emt 0:00:04]} Kxe7 {[%emt 0:00:32]} 13. O-O {[%emt 0:00:09]} f6 {[%emt 0:00:27]} 14. d4 {[%emt 0:00:18]} Kf7 {[%emt 0:04:23]} 15. Bf4 {[%emt 0:00:39]} d5 {[%emt 0:00:53]} 16. Rfe1 {[%emt 0:00:15]} Nd7 {[%emt 0:07:15]} 17. Bd6 {[%emt 0:00:44]} Rhe8 {[%emt 0:01:45]} 18. Rxe8 {[%emt 0:00:07]} Rxe8 {[%emt 0:01:50]} 19. Re1 {[%emt 0:00:01]} g6 {[%emt 0:01:58]} 20. Kf1 {[%emt 0:00:12]} Nb6 {[%emt 0:06:35]} 21. Rxe8 {[%emt 0:00:31]} Kxe8 {[%emt 0:00:31]} 22. b3 {[%emt 0:00:06]} Nd7 {[%emt 0:02:53]} 23. Ne1 {[%emt 0:01:26]} Kf7 {[%emt 0:00:51]} 24. Nd3 {[%emt 0:00:11]} Ke6 {[%emt 0:01:26]} 25. Ba3 {[%emt 0:00:14]} b6 {[%emt 0:01:34]} 26. Ke2 {[%emt 0:00:46]} Kf7 {[%emt 0:01:54]} 27. Nb4 {[%emt 0:00:23]} Nb8 {[%emt 0:00:49]} 28. Bc1 {[%emt 0:00:33]} a5 {[%emt 0:00:44]} 29. Bf4 {[%emt 0:00:37]} axb4 {[%emt 0:00:44]} 30. Bxb8 {[%emt 0:00:07]} Ke6 {[%emt 0:01:21]} 31. Ba7 {[%emt 0:00:17]} b5 {[%emt 0:01:01]} 32. Bc5 {[%emt 0:00:05]} f5 {[%emt 0:01:11]} 33. Bxb4 {[%emt 0:00:15]} h5 {[%emt 0:00:58]} 34. Ke3 {[%emt 0:00:04]} Kf6 {[%emt 0:01:03]} 35. f4 {[%emt 0:00:25]} Ke6 {[%emt 0:01:28]} 36. Kf3 {[%emt 0:00:08]} Kd7 {[%emt 0:02:00]} 37. Kg3 {[%emt 0:00:07]} Ke6 {[%emt 0:05:29]} 38. Kh4 {[%emt 0:00:30]} Kf6 {[%emt 0:00:57]} 39. a4 {[%emt 0:00:23]} Ke6 {[%emt 0:05:15]} 40. Kg5 {[%emt 0:01:23]} Kf7 {[%emt 0:01:17]} 41. a5 {[%emt 0:30:07]} Kg7 {[%emt 0:31:03]} 42. a6 {[%emt 0:00:43]} Kf7 {[%emt 0:00:21]} 43. a7 {[%emt 0:00:07]} Ke6 {[%emt 0:02:37]} 44. a8=Q {[%emt 0:00:11]} c5 {[%emt 0:00:27]} 45. Bxc5 {[%emt 0:00:03]} Kd7 {[%emt 0:01:03]} 46. Kxg6 {[%emt 0:00:09]} h4 {[%emt 0:00:23]} 47. Kf7 {[%emt 0:00:06]} Kc7 {[%emt 0:00:35]} 48. b4 {[%emt 0:00:40]} h3 {[%emt 0:00:13]} 49. g3 {[%emt 0:00:05]} Kd7 {[%emt 0:00:36]} 50. Qb7+ {[%emt 0:00:05]} Kd8 {[%emt 0:00:25]} 51. Be7# {[%emt 0:00:13]} 1-0

[Event "DVM U12 2024"]
[Site "Heidelberg"]
[Date "2024.12.29"]
[Round "6"]
[White "Classen, Marnin"]
[Black "Buff, Hannes"]
[Result "1-0"]
[ECO "B23"]
[WhiteElo "1632"]
[BlackElo "1370"]
[Annotator "NA RC"]
[PlyCount "45"]
[EventDate "2024.12.23"]
[EventType "team-tourn"]
[EventRounds "7"]
[EventCountry "GER"]
[SourceTitle "playchess.com"]
[Source "ChessBase"]
[SourceQuality "1"]
[TimeControl "40/5400+30:1800+30"]

1. e4 {[%emt 0:00:01]} c5 {[%emt 0:00:18]} 2. Nc3 {[%emt 0:00:05]} d6 {[%emt 0:00:39]} 3. g3 {[%emt 0:00:13]} Nf6 {[%emt 0:01:09]} 4. f4 {[%emt 0:00:30]} Nc6 {[%emt 0:00:55]} 5. Bg2 {[%emt 0:00:14]} g6 {[%emt 0:00:57]} 6. Nf3 {[%emt 0:00:24]} e6 {[%emt 0:07:22]} 7. O-O {[%emt 0:02:26]} Bg7 {[%emt 0:00:19]} 8. d3 {[%emt 0:04:33]} Bd7 {[%emt 0:01:35]} 9. Kh1 {[%emt 0:01:21]} Rb8 {[%emt 0:01:57]} 10. Be3 {[%emt 0:01:08]} Qe7 {[%emt 0:03:53]} 11. Qd2 {[%emt 0:01:25]} Ng4 {[%emt 0:06:45]} 12. Bg1 {[%emt 0:07:17]} a6 {[%emt 0:00:57]} 13. Rae1 {[%emt 0:00:49]} b5 {[%emt 0:14:03]} 14. Nd5 {[%emt 0:04:33]} Qd8 {[%emt 0:01:47]} 15. Nc3 {[%emt 0:00:52]} b4 {[%emt 0:03:41]} 16. Nd1 {[%emt 0:02:31]} Qc7 {[%emt 0:03:28]} 17. h3 {[%emt 0:06:20]} Nh6 {[%emt 0:04:01]} 18. g4 {[%emt 0:07:11]} Ng8 {[%emt 0:10:00]} 19. f5 {[%emt 0:00:00]} Nge7 {[%emt 0:09:37]} 20. Qf4 {[%emt 0:04:09]} Ne5 {[%emt 0:03:17]} 21. f6 {[%emt 0:10:08]} Kf8 {[%emt 0:10:14]} 22. fxg7+ {[%emt 0:00:00]} Kxg7 {[%emt 0:00:12]} 23. Nxe5 {[%emt 0:00:16]} 1-0

[Event "DVM U12 2024"]
[Site "Heidelberg"]
[Date "2024.12.29"]
[Round "6"]
[White "Boroshnev, Dmytro"]
[Black "Vlach, Ludwig"]
[Result "1-0"]
[ECO "C10"]
[WhiteElo "1627"]
[BlackElo "1709"]
[Annotator "NA RC"]
[PlyCount "105"]
[EventDate "2024.12.23"]
[EventType "team-tourn"]
[EventRounds "7"]
[EventCountry "GER"]
[SourceTitle "playchess.com"]
[Source "ChessBase"]
[SourceQuality "1"]
[TimeControl "40/5400+30:1800+30"]

1. e4 {[%emt 0:00:03]} e6 {[%emt 0:00:07]} 2. d4 {[%emt 0:00:07]} d5 {[%emt 0:00:05]} 3. Nd2 {[%emt 0:00:04]} dxe4 {[%emt 0:00:04]} 4. Nxe4 {[%emt 0:00:15]} Nd7 {[%emt 0:00:02]} 5. Nf3 {[%emt 0:00:38]} Ngf6 {[%emt 0:00:04]} 6. Ng3 {[%emt 0:00:23]} b6 {[%emt 0:00:19]} 7. Be2 {[%emt 0:00:26]} Bb7 {[%emt 0:01:41]} 8. a3 {[%emt 0:01:23]} Be7 {[%emt 0:00:00]} 9. O-O {[%emt 0:00:42]} O-O {[%emt 0:00:00]} 10. Re1 {[%emt 0:03:16]} Re8 {[%emt 0:02:01]} 11. c4 {[%emt 0:00:26]} c5 {[%emt 0:00:23]} 12. Be3 {[%emt 0:00:25]} Rc8 {[%emt 0:02:57]} 13. Rc1 {[%emt 0:00:21]} cxd4 {[%emt 0:02:49]} 14. Bxd4 {[%emt 0:00:34]} Nc5 {[%emt 0:00:15]} 15. Bxc5 {[%emt 0:00:29]} Bxc5 {[%emt 0:00:34]} 16. b4 {[%emt 0:00:09]} Be7 {[%emt 0:00:40]} 17. Qb3 {[%emt 0:00:19]} Rc7 {[%emt 0:03:45]} 18. Red1 {[%emt 0:01:01]} Qc8 {[%emt 0:00:19]} 19. Ne5 {[%emt 0:01:01]} b5 {[%emt 0:01:15]} 20. c5 {[%emt 0:02:47]} Bd5 {[%emt 0:01:11]} 21. Qe3 {[%emt 0:00:33]} Qb7 {[%emt 0:04:26]} 22. Bf3 {[%emt 0:00:59]} Bxf3 {[%emt 0:00:50]} 23. Qxf3 {[%emt 0:00:14]} Qxf3 {[%emt 0:00:57]} 24. Nxf3 {[%emt 0:00:07]} Nd5 {[%emt 0:00:05]} 25. Ne4 {[%emt 0:00:49]} Nf4 {[%emt 0:02:02]} 26. Kf1 {[%emt 0:00:42]} Rec8 {[%emt 0:03:50]} 27. g3 {[%emt 0:01:30]} Nd5 {[%emt 0:00:39]} 28. Nc3 {[%emt 0:00:17]} Nxc3 {[%emt 0:00:26]} 29. Rxc3 {[%emt 0:00:06]} Bf6 {[%emt 0:00:31]} 30. Rcd3 {[%emt 0:00:19]} Re8 {[%emt 0:00:38]} 31. Nd2 {[%emt 0:00:26]} Be7 {[%emt 0:04:08]} 32. Ne4 {[%emt 0:01:08]} f5 {[%emt 0:01:09]} 33. Nd6 {[%emt 0:00:07]} Bxd6 {[%emt 0:00:06]} 34. Rxd6 {[%emt 0:00:09]} Rec8 {[%emt 0:01:44]} 35. Rxe6 {[%emt 0:00:32]} Kf7 {[%emt 0:08:49]} 36. Red6 {[%emt 0:00:14]} Re8 {[%emt 0:01:18]} 37. Rd7+ {[%emt 0:00:27]} Re7 {[%emt 0:00:14]} 38. Rxc7 {[%emt 0:00:07]} Rxc7 {[%emt 0:00:04]} 39. Ke2 {[%emt 0:00:10]} Ke6 {[%emt 0:00:22]} 40. Rd6+ {[%emt 0:00:22]} Ke5 {[%emt 0:00:20]} 41. Ke3 {[%emt 0:02:46]} f4+ {[%emt 0:30:52]} 42. gxf4+ {[%emt 0:31:08]} Kf5 {[%emt 0:00:17]} 43. Kf3 {[%emt 0:00:02]} g6 {[%emt 0:02:36]} 44. Rd5+ {[%emt 0:00:19]} Ke6 {[%emt 0:00:31]} 45. Ke4 {[%emt 0:00:14]} Rc6 {[%emt 0:02:00]} 46. Rd6+ {[%emt 0:01:15]} Rxd6 {[%emt 0:00:14]} 47. cxd6 {[%emt 0:00:04]} Kxd6 {[%emt 0:00:10]} 48. f5 {[%emt 0:00:04]} Ke7 {[%emt 0:03:45]} 49. fxg6 {[%emt 0:00:34]} hxg6 {[%emt 0:00:35]} 50. Ke5 {[%emt 0:00:07]} a6 {[%emt 0:01:04]} 51. h4 {[%emt 0:00:09]} Kd7 {[%emt 0:00:29]} 52. Kf6 {[%emt 0:00:07]} Kd6 {[%emt 0:00:14]} 53. Kxg6 {[%emt 0:00:09]} 1-0

[Event "DVM U12 2024"]
[Site "Heidelberg"]
[Date "2024.12.29"]
[Round "6"]
[White "Martin Fernandez, Felix"]
[Black "Tomovski, Leon"]
[Result "1-0"]
[ECO "B02"]
[WhiteElo "1624"]
[BlackElo "1569"]
[Annotator "NA RC"]
[PlyCount "75"]
[EventDate "2024.12.23"]
[EventType "team-tourn"]
[EventRounds "7"]
[EventCountry "GER"]
[SourceTitle "playchess.com"]
[Source "ChessBase"]
[SourceQuality "1"]
[TimeControl "40/5400+30:1800+30"]

1. e4 {[%emt 0:00:01]} Nf6 {[%emt 0:00:22]} 2. e5 {[%emt 0:00:10]} Nd5 {[%emt 0:00:05]} 3. c4 {[%emt 0:00:17]} Nb6 {[%emt 0:00:17]} 4. d4 {[%emt 0:00:10]} e6 {[%emt 0:00:08]} 5. Nf3 {[%emt 0:00:35]} Nc6 {[%emt 0:00:09]} 6. Be2 {[%emt 0:01:03]} Be7 {[%emt 0:00:22]} 7. O-O {[%emt 0:01:03]} O-O {[%emt 0:00:13]} 8. Be3 {[%emt 0:01:25]} d5 {[%emt 0:00:14]} 9. c5 {[%emt 0:01:36]} Nd7 {[%emt 0:00:40]} 10. a3 {[%emt 0:01:19]} f6 {[%emt 0:00:28]} 11. exf6 {[%emt 0:01:48]} Bxf6 {[%emt 0:01:21]} 12. Nc3 {[%emt 0:02:37]} b6 {[%emt 0:04:01]} 13. b4 {[%emt 0:03:04]} a5 {[%emt 0:00:00]} 14. b5 {[%emt 0:00:28]} Ne7 {[%emt 0:00:00]} 15. c6 {[%emt 0:00:08]} Nb8 {[%emt 0:00:00]} 16. Ne5 {[%emt 0:01:25]} Nf5 {[%emt 0:00:00]} 17. Bf4 {[%emt 0:02:06]} Bg5 {[%emt 0:00:00]} 18. Bxg5 {[%emt 0:01:33]} Qxg5 {[%emt 0:00:40]} 19. f4 {[%emt 0:05:34]} Qf6 {[%emt 0:03:19]} 20. Qd3 {[%emt 0:02:44]} Nd6 {[%emt 0:01:47]} 21. Qf3 {[%emt 0:03:44]} Nc4 {[%emt 0:00:42]} 22. Bxc4 {[%emt 0:00:29]} dxc4 {[%emt 0:00:08]} 23. Ne4 {[%emt 0:00:33]} Qd8 {[%emt 0:00:24]} 24. Rad1 {[%emt 0:00:47]} Qd5 {[%emt 0:00:52]} 25. Nc3 {[%emt 0:06:29]} Qxf3 {[%emt 0:01:20]} 26. Rxf3 {[%emt 0:00:09]} a4 {[%emt 0:00:15]} 27. Kf2 {[%emt 0:00:43]} g6 {[%emt 0:00:15]} 28. Ke3 {[%emt 0:00:54]} Kg7 {[%emt 0:00:14]} 29. Rdf1 {[%emt 0:00:57]} Rf5 {[%emt 0:01:58]} 30. g4 {[%emt 0:00:42]} Rf8 {[%emt 0:00:12]} 31. h4 {[%emt 0:01:11]} h6 {[%emt 0:01:24]} 32. h5 {[%emt 0:02:17]} gxh5 {[%emt 0:04:26]} 33. gxh5 {[%emt 0:00:08]} Rf5 {[%emt 0:01:48]} 34. Rg3+ {[%emt 0:00:11]} Kf8 {[%emt 0:00:12]} 35. Rfg1 {[%emt 0:01:43]} Rxe5+ {[%emt 0:06:21]} 36. dxe5 {[%emt 0:00:17]} Nxc6 {[%emt 0:01:03]} 37. Rg8+ {[%emt 0:00:39]} Ke7 {[%emt 0:00:12]} 38. R1g7# {[%emt 0:00:22]} 1-0

[Event "DVM U12 2024"]
[Site "Heidelberg"]
[Date "2024.12.29"]
[Round "6"]
[White "Svanidze, Alexander"]
[Black "Thoms, Eric"]
[Result "1/2-1/2"]
[ECO "C54"]
[WhiteElo "1615"]
[BlackElo "1666"]
[Annotator "NA RC"]
[PlyCount "98"]
[EventDate "2024.12.23"]
[EventType "team-tourn"]
[EventRounds "7"]
[EventCountry "GER"]
[SourceTitle "playchess.com"]
[Source "ChessBase"]
[SourceQuality "1"]
[TimeControl "40/5400+30:1800+30"]

1. e4 {[%emt 0:00:01]} e5 {[%emt 0:00:08]} 2. Nf3 {[%emt 0:00:02]} Nc6 {[%emt 0:00:10]} 3. Bc4 {[%emt 0:00:02]} Nf6 {[%emt 0:00:10]} 4. d3 {[%emt 0:00:01]} Bc5 {[%emt 0:00:09]} 5. c3 {[%emt 0:00:02]} d6 {[%emt 0:00:16]} 6. O-O {[%emt 0:00:17]} h6 {[%emt 0:01:56]} 7. Nbd2 {[%emt 0:01:04]} O-O {[%emt 0:00:17]} 8. Bb3 {[%emt 0:04:16]} a6 {[%emt 0:04:40]} 9. a4 {[%emt 0:00:35]} Ba7 {[%emt 0:00:27]} 10. h3 {[%emt 0:01:12]} Ne7 {[%emt 0:01:28]} 11. Re1 {[%emt 0:02:49]} Ng6 {[%emt 0:00:13]} 12. Nf1 {[%emt 0:06:40]} Re8 {[%emt 0:04:28]} 13. Ng3 {[%emt 0:01:56]} c6 {[%emt 0:01:56]} 14. d4 {[%emt 0:02:47]} Qc7 {[%emt 0:01:17]} 15. Qc2 {[%emt 0:04:14]} Be6 {[%emt 0:03:31]} 16. Bxe6 {[%emt 0:00:40]} Rxe6 {[%emt 0:00:18]} 17. dxe5 {[%emt 0:02:00]} dxe5 {[%emt 0:03:26]} 18. Nf5 {[%emt 0:03:18]} Rd8 {[%emt 0:02:02]} 19. Bd2 {[%emt 0:05:10]} Nh5 {[%emt 0:07:52]} 20. Be3 {[%emt 0:12:49]} Bxe3 {[%emt 0:01:02]} 21. Rxe3 {[%emt 0:00:34]} Nhf4 {[%emt 0:00:00]} 22. Kh2 {[%emt 0:10:24]} Ne7 {[%emt 0:05:52]} 23. N3h4 {[%emt 0:03:39]} Nxf5 {[%emt 0:02:56]} 24. Nxf5 {[%emt 0:01:41]} Kh7 {[%emt 0:06:32]} 25. g3 {[%emt 0:03:36]} Nh5 {[%emt 0:00:41]} 26. Qb3 {[%emt 0:01:24]} Rd2 {[%emt 0:03:06]} 27. Kg2 {[%emt 0:02:57]} g6 {[%emt 0:00:36]} 28. Nh4 {[%emt 0:00:17]} Red6 {[%emt 0:00:14]} 29. Nf3 {[%emt 0:01:05]} R2d3 {[%emt 0:00:45]} 30. Rae1 {[%emt 0:01:17]} Rxe3 {[%emt 0:01:07]} 31. Rxe3 {[%emt 0:00:08]} Rd7 {[%emt 0:00:25]} 32. Qc2 {[%emt 0:03:51]} Qd6 {[%emt 0:02:26]} 33. Re2 {[%emt 0:02:49]} Nf6 {[%emt 0:00:21]} 34. b4 {[%emt 0:03:04]} Kg7 {[%emt 0:01:34]} 35. Rd2 {[%emt 0:00:59]} Qe7 {[%emt 0:00:24]} 36. Rxd7 {[%emt 0:00:10]} Nxd7 {[%emt 0:00:15]} 37. Qd3 {[%emt 0:01:03]} Nf6 {[%emt 0:00:52]} 38. Nd2 {[%emt 0:04:15]} Ne8 {[%emt 0:05:45]} 39. Nb3 {[%emt 0:08:49]} Qd6 {[%emt 0:02:09]} 40. Qxd6 {[%emt 0:00:54]} Nxd6 {[%emt 0:00:08]} 41. Nd2 {[%emt 0:30:02]} b5 {[%emt 0:32:42]} 42. a5 {[%emt 0:00:45]} Kf6 {[%emt 0:01:17]} 43. Kf3 {[%emt 0:00:54]} Ke6 {[%emt 0:00:36]} 44. Ke3 {[%emt 0:00:58]} f6 {[%emt 0:02:01]} 45. f3 {[%emt 0:02:02]} h5 {[%emt 0:00:27]} 46. Ke2 {[%emt 0:00:00]} Nb7 {[%emt 0:00:00]} 47. Nb3 {[%emt 0:00:00]} Kd6 {[%emt 0:00:00]} 48. Kd2 {[%emt 0:00:00]} Ke6 {[%emt 0:00:00]} 49. Ke2 {[%emt 0:00:00]} Kd6 {[%emt 0:00:00]} 1/2-1/2